fUST/lending_fUST_20260209
["ID","MTS","AMOUNT","RATE_DAILY","PERIOD"]
[404793422,1770569835611,5000.0,0.00022011,2]
[404793423,1770570016237,639.63025564,0.00013699,2]
[404793424,1770570139365,-1049.11256825,0.00022398,2]
[404793425,1770570234958,5000.0,0.00022011,2]
[404793426,1770570243314,5000.0,0.00022011,2]
[404793427,1770570266491,2342.05066866,0.00022011,2]
[404793428,1770570321624,525.12667369,0.00027637,120]
[404793429,1770570323376,500.0,0.00013699,2]
[404793430,1770570323423,345.39040608,0.00013699,2]
[404793431,1770570323883,500.0,0.00013273,2]
[404793432,1770570323928,798.96782818,0.00013821,2]
[404793433,1770570331743,500.0,0.00013699,2]
[404793434,1770570377806,500.0,0.00013699,2]
[404793435,1770570377989,1000.0,0.00014247,2]
[404793436,1770570378018,1500.0,0.00014795,2]
[404793438,1770570453045,5000.0,0.00022011,2]
[404793439,1770570606112,284.2211531,0.00013699,2]
[404793465,1770570632153,-5000.0,0.00022398,2]
[404793466,1770570632163,-1100.03081341,0.00022624,2]
[404793484,1770570638419,-1.4558218,0.00022624,2]
[404793504,1770570644717,-1738.99624944,0.00022624,2]
[404793505,1770570645447,-297.671768,0.00022624,2]
[404793512,1770570646186,-948.26375861,0.00022624,2]
[404793513,1770570646198,-500.0,0.00022853,2]
[404793514,1770570646208,-300.0,0.00023317,10]
[404793515,1770570646219,-300.0,0.00023317,10]
[404793516,1770570646231,-300.0,0.00023317,10]
[404793517,1770570646241,-300.0,0.00023317,10]
[404793518,1770570646251,-300.0,0.00023317,10]
[404793519,1770570646260,-300.0,0.00023317,10]
[404793520,1770570646270,-300.0,0.00023317,10]
[404793521,1770570646279,-300.0,0.00023317,10]
[404793522,1770570646289,-300.0,0.00023317,10]
[404793523,1770570646452,-300.0,0.00023317,10]
[404793524,1770570646462,-300.0,0.00023317,10]
[404793525,1770570646471,-300.0,0.00023317,10]
[404793526,1770570646480,-300.0,0.00023317,10]
[404793527,1770570646490,-300.0,0.00023317,10]
[404793528,1770570646502,-300.0,0.00023317,10]
[404793529,1770570646511,-600.0,0.00023782,10]
[404793530,1770570646520,-720.0,0.00026161,30]
[404793531,1770570646529,-3194.87565905,0.00026739,2]
[404793532,1770570646541,-470.20460261,0.00026837,2]
[404793533,1770570646550,-567.73816821,0.00026837,2]
[404793534,1770570646559,-500.0,0.00026837,2]
[404793535,1770570646568,-500.0,0.00026837,2]
[404793536,1770570646578,-500.0,0.00026837,2]
[404793537,1770570646587,-500.0,0.00026837,2]
[404793538,1770570646596,-210.63147809,0.00026837,2]
[404793539,1770570646605,-500.0,0.00026837,2]
[404793540,1770570646614,-500.0,0.00026837,2]
[404793541,1770570646624,-500.0,0.00026837,2]
[404793542,1770570646633,-500.0,0.00026837,2]
[404793543,1770570646643,-70.67842007,0.00026837,2]
[404793544,1770570646654,-429.32157993,0.00026837,2]
[404793545,1770570646663,-295.93159707,0.00026837,2]
[404793546,1770570646672,-500.0,0.00026837,2]
[404793547,1770570646681,-500.0,0.00026837,2]
[404793548,1770570646690,-500.0,0.00026837,2]
[404793549,1770570646699,-500.0,0.00026837,2]
[404793550,1770570646708,-500.0,0.00026837,2]
[404793551,1770570646717,-500.0,0.00026837,2]
[404793552,1770570646727,-500.0,0.00026837,2]
[404793553,1770570646736,-500.0,0.00026837,2]
[404793554,1770570646746,-500.0,0.00026837,2]
[404793555,1770570646756,-500.0,0.00026837,2]
[404793556,1770570646765,-500.0,0.00026837,2]
[404793557,1770570646775,-500.0,0.00026837,2]
[404793558,1770570646784,-548.66148886,0.00026837,2]
[404793559,1770570646794,-500.0,0.00026837,2]
[404793560,1770570646803,-500.0,0.00026837,2]
[404793561,1770570646813,-500.0,0.00026837,2]
[404793562,1770570646822,-500.0,0.00026837,2]
[404793563,1770570646831,-500.0,0.00026837,2]
[404793564,1770570646840,-500.0,0.00026837,2]
[404793565,1770570646850,-651.627674,0.00027638,2]
[404793566,1770570646859,-864.0,0.00028777,30]
[404793567,1770570646868,-1000.0,0.00031654,30]
[404793568,1770570646878,-200.0,0.00031857,2]
[404793569,1770570646887,-1041.66666667,0.00032832,2]
[404793570,1770570646896,-741.77891082,0.00032834,2]
[404793571,1770570646906,-2775.13436169,0.000332,117]
[404793572,1770570646915,-200.0,0.00034165,2]
[404793573,1770570646924,-1000.0,0.0003482,30]
[404793574,1770570646934,-244.0,0.0003482,30]
[404793575,1770570646943,-200.0,0.00036473,2]
[404793576,1770570646954,-3194.87565904,0.00037191,2]
[404793577,1770570646963,-1000.0,0.00038302,60]
[404793578,1770570646973,-492.0,0.00038302,60]
[404793579,1770570646982,-200.0,0.00038782,2]
[404793580,1770570646991,-176.35096578,0.00039084,15]
[404793581,1770570647000,-528.12354441,0.00039084,15]
[404793582,1770570647010,-4086.41841126,0.00039085,2]
[404793583,1770570647020,-150.0,0.00039774,2]
[404793584,1770570647029,-632.0,0.00039774,2]
[404793585,1770570647039,-1373.0,0.00039774,2]
[404793586,1770570647050,-299.03,0.00039855,78]
[404793587,1770570647060,-325.82,0.00039855,78]
[404793588,1770570647069,-625.43,0.00039855,78]
[404793589,1770570647079,-179.9460162,0.00040975,24]
[404793590,1770570647088,-200.0,0.0004109,10]
[404793591,1770570647097,-651.627674,0.00041458,2]
[404793592,1770570647107,-2775.13436166,0.00041868,120]
[404793593,1770570647115,-1000.0,0.00042132,60]
[404793594,1770570647125,-791.0,0.00042132,60]
[404793595,1770570647134,-200.0,0.00043398,10]
[404793596,1770570647143,-200.0,0.00045707,10]
[404793597,1770570647153,-1000.0,0.00046345,120]
[404793598,1770570647162,-1000.0,0.00046345,120]
[404793599,1770570647171,-351.88093792,0.00046575,7]
[404793600,1770570647181,-1241.79152829,0.00046714,4]
[404793601,1770570647190,-8000.0,0.00047,120]
[404793602,1770570647199,-151.0,0.00047,120]
[404793603,1770570647208,-228.227972,0.00047,120]
[404793604,1770570647217,-228.227972,0.00047,120]
[404793605,1770570647226,-228.227972,0.00047,120]
[404793606,1770570647235,-228.227972,0.00047,120]
[404793607,1770570647244,-160.0,0.00047,120]
[404793608,1770570647254,-260.122802,0.0004711,60]
[404793609,1770570647263,-4121.52099428,0.000472,58]
[404793610,1770570647273,-4121.52099425,0.000472,58]
[404793611,1770570647281,-4121.52099425,0.000472,58]
[404793612,1770570647291,-3194.87565904,0.00047642,28]
[404793613,1770570647300,-1772.41535087,0.00048015,2]
[404793614,1770570647310,-732.0655414,0.00048015,2]
[404793615,1770570647318,-398.83,0.00048015,10]
[404793616,1770570647328,-4121.52099425,0.000482,62]
[404793617,1770570647337,-151.0,0.000482,120]
[404793618,1770570647346,-351.88093792,0.00048257,7]
[404793619,1770570647354,-228.227972,0.00048257,120]
[404793620,1770570647363,-228.227972,0.00048257,120]
[404793621,1770570647372,-228.227972,0.00048257,120]
[404793622,1770570647381,-228.227972,0.00048257,120]
[404793623,1770570647391,-15073.5711744,0.0004827,4]
[404793624,1770570647400,-174.89541373,0.00048271,2]
[404793625,1770570647409,-250.0,0.00048271,2]
[404793626,1770570647418,-250.0,0.00048271,2]
[404793627,1770570647427,-250.0,0.00048271,2]
[404793628,1770570647436,-250.0,0.00048271,2]
[404793629,1770570647447,-357.2168731,0.00048271,2]
[404793630,1770570647456,-2026.89,0.0004828,10]
[404793631,1770570647466,-228.227972,0.0004829,120]
[404793632,1770570647475,-228.227972,0.0004829,120]
[404793633,1770570647484,-228.227972,0.0004829,120]
[404793634,1770570647495,-228.227972,0.0004829,120]
[404793635,1770570647505,-30147.1423488,0.0004829,4]
[404793636,1770570647514,-108440.92417636,0.000483,2]
[404793637,1770570647523,-9579.62,0.000483,2]
[404793638,1770570647532,-156.12,0.000483,14]
[404793639,1770570647543,-168.49,0.000483,30]
[404793640,1770570647552,-168.34,0.000483,14]
[404793641,1770570647561,-151.0,0.000483,120]
[404793642,1770570647572,-228.227972,0.000483,120]
[404793643,1770570647582,-228.227972,0.000483,120]
[404793644,1770570647591,-228.227972,0.000483,120]
[404793645,1770570647600,-228.227972,0.000483,120]
[404793646,1770570647610,-151.0,0.000484,22]
[404793647,1770570647619,-151.0,0.000484,27]
[404793648,1770570647628,-151.0,0.000484,22]
[404793649,1770570647637,-15073.5711744,0.0004848,4]
[404793650,1770570647646,-174.4944,0.0004849,120]
[404793651,1770570647656,-228.227972,0.0004849,120]
[404793652,1770570647665,-228.227972,0.0004849,120]
[404793653,1770570647674,-228.227972,0.0004849,120]
[404793654,1770570647684,-228.227965,0.0004849,120]
[404793655,1770570647693,-194056.88869713,0.0004849,4]
[404793656,1770570647706,-1011.2245,0.0004849,4]
[404793657,1770570648145,-46109.02559387,0.0004849,4]
[404793658,1770570648154,-739.59217759,0.0004849,4]
[404793659,1770570648163,-163912.98156457,0.000485,30]
[404793661,1770570691941,500.0,0.00013273,2]
[404793662,1770570691972,1000.0,0.00013821,2]
[404793663,1770570838623,5000.0,0.00022011,2]
[404793669,1770571026377,300.0,0.00013673,2]
[404793670,1770571028685,500.0,0.00013699,2]
[404793671,1770571028728,1000.0,0.00014247,2]
[404793672,1770571035213,500.0,0.00013699,2]
[404793686,1770571327240,500.0,0.00013273,2]
[404793687,1770571327281,1000.0,0.00013821,2]
[404793688,1770571327333,1500.0,0.00014368,2]
[404793689,1770571327393,500.0,0.00014916,2]
[404793690,1770571332824,259.9815502,0.00013273,2]
[404793691,1770571335213,500.0,0.00013699,2]
[404793692,1770571335264,500.0,0.00014247,2]
[404793693,1770571349108,522.00461846,0.00013273,2]
[404793696,1770571503334,500.0,0.00013273,2]
[404793697,1770571513046,300.0,0.00014221,2]
[404793698,1770571513145,300.0,0.00013673,2]
[404793699,1770571519119,500.0,0.00013273,2]
[404793700,1770571519166,1000.0,0.00013821,2]
[404793701,1770571585933,500.0,0.00013273,2]
[404793702,1770571585986,405.52637,0.00013821,2]
[404793740,1770571832358,-1097.25,0.00022566,2]
[404793793,1770571838545,-3902.75,0.00022566,2]
[404793795,1770571838554,-332.07551782,0.00022794,2]
[404793797,1770571838563,-3731.15137349,0.00024211,2]
[404793798,1770571838573,-1541.15008644,0.0002465,2]
[404793800,1770571838582,-1689.08,0.0002499,10]
[404793802,1770571838592,-1407.56,0.0002499,10]
[404793805,1770571838601,-41121.4918577,0.00025,2]
[404793995,1770571840682,-698.91,0.00025,2]
[404794365,1770571846569,-5000.0,0.0002475,2]
[404794366,1770571846579,-20461.06221693,0.00025,2]
[404794367,1770571846595,-1966.32121399,0.00025,2]
[404794368,1770571846611,-7419.83353663,0.00025,2]
[404794369,1770571846622,-1316.23208001,0.00025,2]
[404794370,1770571900974,500.44470104,0.00013273,2]
[404794373,1770571938529,500.0,0.00013699,2]
[404794374,1770571959910,-2286.93608999,0.0002475,2]
[404794378,1770572107694,500.0,0.00013699,2]
[404794379,1770572115957,500.0,0.00013699,2]
[404794380,1770572116079,500.0,0.00013699,2]
[404794381,1770572116133,654.60959392,0.00014247,2]
[404794382,1770572122219,300.0,0.00013673,2]
[404794383,1770572122990,500.0,0.00013699,2]
[404794384,1770572123039,400.32003782,0.00014247,2]
[404794385,1770572123093,500.00498246,0.00013699,2]
[404794386,1770572125129,301.56130493,0.00013699,2]
[404794387,1770572125704,500.0,0.00013699,2]
[404794388,1770572127684,500.0,0.00013699,2]
[404794389,1770572128919,1000.0,0.00014247,2]
[404794390,1770572128968,500.0,0.00013699,2]
[404794391,1770572130967,500.0,0.00013699,2]
[404794392,1770572189257,160.90776456,0.00013699,2]
[404794402,1770572685760,10000.0,0.00022011,2]
[404794403,1770572705774,151.0,0.00013273,2]
[404794404,1770572709142,10000.0,0.00022011,2]
[404794405,1770572722568,10000.0,0.00022011,2]
[404794406,1770572741195,1310.0,0.00022011,2]
[404794407,1770572795542,-1000.0,0.00023155,2]
[404794408,1770572796791,-1000.0,0.00023155,2]
[404794409,1770572797185,-1000.0,0.00023155,2]
[404794410,1770572797493,-1000.0,0.00023155,2]
[404794411,1770572797904,-1000.0,0.00023155,2]
[404794412,1770572798221,-300.0,0.00023505,2]
[404794413,1770572798243,-631.0,0.00023506,2]
[404794414,1770572798264,-69.0,0.00023506,2]
[404794415,1770572798638,-1000.0,0.00023506,2]
[404794416,1770572798959,-1000.0,0.00023506,2]
[404794417,1770572799372,-1000.0,0.00023506,2]
[404794418,1770572799780,-1000.0,0.00023506,2]
[404794419,1770572800230,-52.96300539,0.00023506,2]
[404794420,1770572800251,-150.0,0.00023507,2]
[404794421,1770572800271,-206.851088,0.00023625,2]
[404794422,1770572800292,-590.18590661,0.00023625,2]
[404794423,1770572800475,-200.81409339,0.00023625,2]
[404794424,1770572800496,-221.1753416,0.00023961,2]
[404794425,1770572801411,150.0,0.0002333,2]
[404794434,1770572862140,-1000.0,0.00023934,2]
[404794435,1770572863097,-1000.0,0.00023934,2]
[404794436,1770572863880,-1000.0,0.00023934,2]
[404794437,1770572864707,-1000.0,0.00023934,2]
[404794438,1770572865548,-1000.0,0.00023934,2]
[404794441,1770572908506,-200.0,0.00023933,2]
[404794442,1770572916491,-800.0,0.00023933,2]
[404794443,1770572920150,-1000.0,0.00023933,2]
[404794444,1770572920916,-1000.0,0.00023933,2]
[404794445,1770572921233,-1000.0,0.00023933,2]
[404794446,1770572921663,-1000.0,0.00023933,2]
[404794473,1770573031712,-1404.17076944,0.00023933,2]
[404794494,1770573035505,-3595.82923056,0.00023933,2]
[404794500,1770573037694,-300.0,0.00024174,2]
[404794501,1770573037704,-1200.0,0.00024174,2]
[404794502,1770573037713,-3715.922,0.00024175,2]
[404794503,1770573037747,-355.44408614,0.00024175,2]
[404794508,1770573040292,-35.86235217,0.00024175,2]
[404794509,1770573040301,-1722.83282811,0.00024176,2]
[404794523,1770573043690,1404.17076944,0.00024,2]
[404794528,1770573045211,-3595.82923056,0.00024,2]
[404794530,1770573045221,-4898.49466119,0.00024176,2]
[404794531,1770573045231,-2428.81601765,0.00024899,2]
[404794536,1770573045866,-501.0,0.00024899,2]
[404794543,1770573310393,165.9474586,0.00013699,2]
[404794547,1770573758337,-2737.73835864,0.00024235,2]
[404794567,1770574076500,-1000.0,0.00022914,30]
[404794568,1770574076535,-390.054129,0.00023138,2]
[404794569,1770574076569,-5000.0,0.00023354,2]
[404794570,1770574076598,-150.0,0.00023591,2]
[404794571,1770574076625,-300.0,0.00023828,2]
[404794572,1770574076651,-221.448771,0.00023829,2]
[404794573,1770574076696,-876.9942,0.00023829,2]
[404794574,1770574076706,-123.0058,0.00023829,2]
[404794575,1770574076718,-390.054129,0.00023829,2]
[404794576,1770574076729,-5000.0,0.00023829,2]
[404794577,1770574076740,-150.0,0.00023829,2]
[404794578,1770574076753,-300.0,0.00023829,2]
[404794579,1770574076768,-1098.442971,0.00023829,2]
[404794612,1770574231765,-400.0,0.0002359,2]
[404794691,1770574233897,-4600.0,0.0002359,2]
[404794692,1770574233931,-300.0,0.00023827,2]
[404794693,1770574233965,-300.0,0.00023827,2]
[404794694,1770574233998,-300.0,0.00023827,2]
[404794695,1770574234032,-500.0,0.00023827,2]
[404794696,1770574234066,-500.0,0.00023827,2]
[404794697,1770574234098,-500.0,0.00023827,2]
[404794698,1770574234134,-500.0,0.00023827,2]
[404794699,1770574234169,-500.0,0.00023827,2]
[404794700,1770574234199,-500.0,0.00023827,2]
[404794701,1770574234233,-500.0,0.00023827,2]
[404794702,1770574234267,-500.0,0.00023827,2]
[404794703,1770574234304,-391.29555873,0.00023827,2]
[404794943,1770574240106,-217.40888254,0.00023827,2]
[404794945,1770574240116,-500.0,0.00023827,2]
[404794965,1770574240296,-500.0,0.00023827,2]
[404794967,1770574240306,-500.0,0.00023827,2]
[404794969,1770574240315,-500.0,0.00023827,2]
[404794971,1770574240325,-500.0,0.00023827,2]
[404794973,1770574240335,-500.0,0.00023827,2]
[404794975,1770574240344,-500.0,0.00023827,2]
[404794977,1770574240353,-560.55213672,0.00023827,2]
[404794979,1770574240362,-500.0,0.00023827,2]
[404794981,1770574240371,-500.0,0.00023827,2]
[404794983,1770574240381,-500.0,0.00023827,2]
[404794985,1770574240390,-500.0,0.00023827,2]
[404794987,1770574240399,-414.59315971,0.00023827,2]
[404794989,1770574240408,-500.0,0.00023827,2]
[404794991,1770574240417,-500.0,0.00023827,2]
[404794993,1770574240426,-500.0,0.00023827,2]
[404794995,1770574240435,-500.0,0.00023827,2]
[404794997,1770574240444,-500.0,0.00023827,2]
[404794999,1770574240453,-500.0,0.00023827,2]
[404795001,1770574240465,-500.0,0.00023827,2]
[404795003,1770574240474,-500.0,0.00023827,2]
[404795005,1770574240487,-500.0,0.00023827,2]
[404795007,1770574240496,-500.0,0.00023827,2]
[404795009,1770574240505,-500.0,0.00023827,2]
[404795011,1770574240514,-500.0,0.00023827,2]
[404795013,1770574240523,-500.0,0.00023827,2]
[404795015,1770574240533,-496.71576566,0.00023827,2]
[404795017,1770574240542,-500.0,0.00023827,2]
[404795019,1770574240551,-500.0,0.00023827,2]
[404795021,1770574240562,-541.66913838,0.00023827,2]
[404795023,1770574240573,-500.0,0.00023827,2]
[404795025,1770574240583,-500.0,0.00023827,2]
[404795028,1770574240595,-500.0,0.00023827,2]
[404795030,1770574240606,-500.0,0.00023827,2]
[404795032,1770574240615,-500.0,0.00023827,2]
[404795034,1770574240624,-500.0,0.00023827,2]
[404795036,1770574240633,-500.0,0.00023827,2]
[404795038,1770574240643,-500.0,0.00023827,2]
[404795040,1770574240652,-500.0,0.00023827,2]
[404795042,1770574240661,-423.76382811,0.00023827,2]
[404795044,1770574240674,-500.0,0.00023827,2]
[404795046,1770574240683,-500.0,0.00023827,2]
[404795048,1770574240693,-500.0,0.00023827,2]
[404795050,1770574240703,-500.0,0.00023827,2]
[404795052,1770574240716,-270.35849304,0.00023827,2]
[404795053,1770574240728,-500.0,0.00023827,2]
[404795055,1770574240739,-4422.98216256,0.00023828,2]
[404795057,1770574240749,-500.0,0.00023828,2]
[404795059,1770574240759,-153.17697558,0.00023828,2]
[404795061,1770574240768,-14125.0299366,0.00023829,2]
[404795063,1770574240778,-1927.703695,0.00024603,2]
[404795065,1770574240787,-1505.4266288,0.00024603,2]
[404795067,1770574240797,-1212.17,0.0002499,10]
[404795069,1770574240806,-1010.14,0.0002499,10]
[404795071,1770574240815,-841.78,0.0002499,10]
[404795073,1770574240825,-701.49,0.0002499,10]
[404795075,1770574240834,-542.69351505,0.00024999,2]
[404795077,1770574240843,-42315.08366404,0.00025,2]
[404795079,1770574240852,-600.0,0.00025499,10]
[404795081,1770574240861,-253.69920252,0.0002559,2]
[404795098,1770574241025,-1565.05565198,0.0002559,2]
[404795100,1770574241035,-265.85640737,0.00025591,2]
[404795102,1770574241043,-5000.0,0.000256,2]
[404795104,1770574241055,-240.0,0.00025844,2]
[404795106,1770574241064,-154.43355708,0.00026837,2]
[404795108,1770574241074,-741.77891082,0.00028,3]
[404795110,1770574241083,-720.0,0.00028049,30]
[404795112,1770574241093,-1132.38260953,0.000297,2]
[404795441,1770574244408,-2054.92963174,0.00023589,2]
[404795525,1770574245298,-2945.07036826,0.00023589,2]
[404795526,1770574245308,-1396.6356176,0.000297,2]
[404795528,1770574245317,-217.0635269,0.00029827,2]
[404795530,1770574245327,-7537.13920724,0.0002999,2]
[404795532,1770574245338,-1028.85686,0.0002999,2]
[404797726,1770574387948,-400.96716014,0.00023827,2]
[404797727,1770574387978,-242.53314838,0.00023827,2]
[404797728,1770574388007,-457.22388291,0.00023828,2]
[404797729,1770574398535,500.0,0.00023827,2]
[404797730,1770574398586,166.30175174,0.00023827,2]
[404797731,1770574405626,500.0,0.00023827,2]
[404797732,1770574405681,647.46307238,0.00023827,2]
[404797733,1770574421338,337.9632376,0.00023827,2]
[404797734,1770574422787,434.95479552,0.00023827,2]
[404797735,1770574465899,-5000.0,0.00024703,2]
[404797736,1770574480171,5000.0,0.00025,2]
[404797737,1770574502911,211.8687599,0.00025,2]
[404797739,1770574835470,4608.812297,0.00015,2]
[404797824,1770575304677,908.97827091,0.00017,2]
[404797847,1770575431970,-300.0,0.00023999,2]
[404797848,1770575431980,-64.59466729,0.00023999,2]
[404797849,1770575431991,-235.40533271,0.00023999,2]
[404797850,1770575432001,-300.0,0.00023999,2]
[404797851,1770575432010,-131.18508518,0.00023999,2]
[404797852,1770575432024,-168.81491482,0.00023999,2]
[404797853,1770575432033,-1200.0,0.00023999,2]
[404797854,1770575432042,-60.78686043,0.00024,2]
[404797855,1770575432059,-7710.98608596,0.00024,2]
[404797856,1770575432071,-7945.89115147,0.00024,2]
[404797879,1770575438092,-1548.83918175,0.00023759,2]
[404797886,1770575438147,-2457.62470443,0.00023759,2]
[404798091,1770575440340,-993.53611382,0.00023759,2]
[404798093,1770575440350,-2282.33590214,0.00024,2]
[404798095,1770575440360,-3328.33102665,0.00024009,2]
[404798369,1770575444380,-1446.993086,0.00024009,2]
[404798370,1770575444389,-500.0,0.00024014,2]
[404798371,1770575444399,-500.0,0.00024014,2]
[404798372,1770575444408,-31.16508345,0.00024014,2]
[404798394,1770575446149,-468.83491655,0.00024014,2]
[404798395,1770575446159,-500.0,0.00024014,2]
[404798396,1770575446168,-349.006914,0.00024014,2]
[404798398,1770575539580,-1357.88340998,0.00023536,2]
[404798402,1770576035672,5000.0,0.00022011,2]
[404798403,1770576058029,5000.0,0.00022011,2]
[404798404,1770576079611,5000.0,0.00022011,2]
[404798405,1770576102440,5000.0,0.00022011,2]
[404798406,1770576124409,5000.0,0.00022011,2]
[404798407,1770576147018,5000.0,0.00022011,2]
[404798408,1770576169022,5000.0,0.00022011,2]
[404798409,1770576191025,5000.0,0.00022011,2]
[404798410,1770576281638,-499.99999997,0.00022327,2]
[404798411,1770576307536,-265.12851607,0.00022327,2]
[404798412,1770576310424,-160.00565814,0.00022327,2]
[404798413,1770576312435,-231.0086626,0.00022327,2]
[404798414,1770576316256,-249.35732485,0.00022327,2]
[404798415,1770576319063,-311.99691406,0.00022327,2]
[404798416,1770576321847,-430.99262353,0.00022327,2]
[404798417,1770576324584,-549.51467285,0.00022327,2]
[404798418,1770576327244,-500.0,0.00022327,2]
[404798419,1770576458169,-53.48679817,0.00022327,2]
[404798420,1770576458190,-295.83311943,0.00022553,2]
[404798421,1770576458212,-300.0,0.00022721,2]
[404798422,1770576458232,-0.6800824,0.00022721,2]
[404798423,1770576525100,186.21741235,0.00021914,4]
[404798462,1770576632168,-277.98040275,0.00022727,2]
[404798464,1770576632178,-300.0,0.00022756,2]
[404798466,1770576632188,-300.0,0.00022756,2]
[404798468,1770576632198,-300.0,0.00022756,2]
[404798470,1770576632209,-496.03077027,0.00022756,2]
[404798577,1770576638287,-703.96922973,0.00022756,2]
[404798578,1770576638298,-337.32968681,0.00022757,2]
[404798803,1770576640495,-3e-08,0.00022757,2]
[404799373,1770576646050,-1057.94999992,0.00022757,2]
[404799464,1770576646844,-3842.32906622,0.00022757,2]
[404799466,1770576646854,-514.97039225,0.00024111,2]
[404799468,1770576646863,-300.0,0.00024174,2]
[404799470,1770576646873,-706.62857364,0.00024175,2]
[404799472,1770576646883,-360.0,0.00024709,2]
[404799473,1770576646892,-1680.0,0.00024824,2]
[404799475,1770576646903,-213.9567988,0.00025078,2]
[404799477,1770576646912,-3977.11607363,0.00025099,2]
[404799479,1770576646922,-744.86964938,0.00025108,4]
[404799481,1770576646932,-1357.88341,0.00025167,2]
[404799483,1770576646941,-1590.0,0.0002518,2]
[404799485,1770576646950,-284.10005668,0.00025189,2]
[404799487,1770576646960,-207.69374023,0.00025189,2]
[404799489,1770576646969,-500.0,0.00025189,2]
[404799491,1770576646978,-500.0,0.00025189,2]
[404799493,1770576646987,-500.0,0.00025189,2]
[404799494,1770576646997,-500.0,0.00025189,2]
[404799496,1770576647006,-500.0,0.00025189,2]
[404799498,1770576647015,-500.0,0.00025189,2]
[404799500,1770576647025,-500.0,0.00025189,2]
[404799502,1770576647034,-500.0,0.00025189,2]
[404799504,1770576647043,-456.01340206,0.00025189,2]
[404799506,1770576647052,-500.0,0.00025189,2]
[404799508,1770576647061,-500.0,0.00025189,2]
[404799510,1770576647070,-500.0,0.00025189,2]
[404799512,1770576647086,-517.30434928,0.00025189,2]
[404799514,1770576647095,-413.8406189,0.00025189,2]
[404799516,1770576647104,-500.0,0.00025189,2]
[404799518,1770576647114,-500.0,0.00025189,2]
[404799520,1770576647123,-500.0,0.00025189,2]
[404799522,1770576647132,-500.0,0.00025189,2]
[404799524,1770576647141,-550.0,0.00025189,2]
[404799526,1770576647151,-500.0,0.00025189,2]
[404799528,1770576647159,-500.0,0.00025189,2]
[404799529,1770576647168,-500.0,0.00025189,2]
[404799531,1770576647178,-500.0,0.00025189,2]
[404799533,1770576647187,-500.0,0.00025189,2]
[404799535,1770576647196,-500.0,0.00025189,2]
[404799537,1770576647205,-505.29643942,0.00025189,2]
[404799539,1770576647215,-500.0,0.00025189,2]
[404799541,1770576647224,-500.0,0.00025189,2]
[404799543,1770576647233,-500.0,0.00025189,2]
[404799545,1770576647242,-3455.63422356,0.0002519,2]
[404799547,1770576647252,-584.57,0.0002519,10]
[404799549,1770576647262,-487.14,0.0002519,10]
[404799551,1770576647271,-452.86554915,0.00025199,2]
[404799553,1770576647281,-349.2876568,0.000252,2]
[404801355,1770576966359,500.0,0.00013273,2]
[404801366,1770577832292,-166.66666668,0.00023194,2]
[404801367,1770577832302,-150.0,0.00023232,2]
[404801368,1770577832311,-210.46142661,0.0002327,2]
[404801369,1770577832322,-264.62865539,0.0002327,2]
[404801370,1770577832331,-252.81348241,0.00025188,2]
[404801371,1770577832346,-47.18651759,0.00025188,2]
[404801372,1770577832355,-960.0,0.00025188,2]
[404801373,1770577832364,-1270.65950111,0.00025189,2]